fUST/lending_fUST_20250730
["ID","MTS","AMOUNT","RATE_DAILY","PERIOD"]
[376109511,1753865440922,-647.98,0.00019116,2]
[376109512,1753865440931,-1255.02,0.00019117,2]
[376109513,1753865440943,-460.0,0.00019117,2]
[376109514,1753865440952,-600.38,0.00019117,2]
[376109515,1753865440962,-460.0,0.00019119,2]
[376109516,1753865440971,-1313.23,0.00019121,2]
[376109517,1753865440980,-200.0,0.00019216,15]
[376109518,1753865440990,-200.0,0.00019216,15]
[376109519,1753865441010,-200.0,0.00019216,15]
[376109520,1753865441020,-200.0,0.00019216,15]
[376109521,1753865441031,-200.0,0.00019216,15]
[376109522,1753865441041,-200.0,0.00019216,15]
[376109523,1753865441051,-200.0,0.00019216,15]
[376109524,1753865441061,-200.0,0.00019216,15]
[376109525,1753865441070,-200.0,0.00019216,15]
[376109526,1753865441080,-200.0,0.00019216,15]
[376109527,1753865441090,-200.0,0.00019216,15]
[376109528,1753865441100,-200.0,0.00019216,15]
[376109529,1753865441110,-200.0,0.00019216,15]
[376109530,1753865441119,-200.0,0.00019216,15]
[376109531,1753865441129,-200.0,0.00019216,15]
[376109532,1753865441140,-200.0,0.00019216,15]
[376109533,1753865441149,-497.86177951,0.00019288,2]
[376109534,1753865441159,-500.0,0.00019288,2]
[376109535,1753865441168,-501.1736456,0.00019288,2]
[376109536,1753865441178,-500.24500333,0.00019288,2]
[376109537,1753865441188,-323.15423214,0.00019355,2]
[376109538,1753865441198,-460.0,0.00019388,2]
[376109539,1753865441207,-460.0,0.00019388,2]
[376109540,1753865441218,-723.62,0.00019388,2]
[376109541,1753865441228,-526.36,0.00019388,2]
[376109542,1753865441238,-460.0,0.00019388,2]
[376109543,1753865441247,-460.0,0.00019388,2]
[376109544,1753865441258,-569.82,0.00019388,2]
[376109545,1753865441268,-460.0,0.00019388,2]
[376109546,1753865441278,-460.0,0.00019388,2]
[376109547,1753865441288,-460.0,0.00019388,2]
[376109548,1753865441298,-460.0,0.00019389,2]
[376109549,1753865441308,-1024.18,0.00019389,2]
[376109550,1753865441318,-460.0,0.00019389,2]
[376109551,1753865441329,-460.0,0.00019389,2]
[376109552,1753865441340,-460.0,0.00019389,2]
[376109553,1753865441350,-460.0,0.0001939,2]
[376109554,1753865441360,-647.98,0.0001939,2]
[376109555,1753865441370,-286.29610849,0.00019391,2]
[376109556,1753865441386,-173.70389151,0.00019391,2]
[376109557,1753865441396,-460.0,0.00019391,2]
[376109558,1753865441407,-460.0,0.00019391,2]
[376109559,1753865441417,-20.89941303,0.00019391,2]
[376109560,1753865441434,-439.10058697,0.00019391,2]
[376109561,1753865441444,-461.88001236,0.00019391,2]
[376109562,1753865441453,-460.4949478,0.00019391,2]
[376109563,1753865441463,-460.0,0.00019391,2]
[376109564,1753865441473,-460.0,0.00019391,2]
[376109565,1753865441483,-1255.02,0.00019391,2]
[376109566,1753865441493,-518.34,0.00019391,2]
[376109567,1753865441503,-460.0,0.00019391,2]
[376109568,1753865441513,-460.0,0.00019393,2]
[376109569,1753865441523,-500.0,0.00019428,2]
[376109570,1753865441533,-3.26845744,0.00019662,2]
[376109571,1753865441546,-456.73154256,0.00019662,2]
[376109572,1753865441556,-723.62,0.00019662,2]
[376109573,1753865441565,-526.36,0.00019662,2]
[376109574,1753865441575,-348.08,0.00019662,2]
[376109575,1753865441586,-460.0,0.00019662,2]
[376109576,1753865441595,-569.82,0.00019662,2]
[376109577,1753865441604,-460.0,0.00019662,2]
[376109578,1753865441614,-315.86,0.00019662,2]
[376109579,1753865441623,-139.52845744,0.00019662,2]
[376109580,1753865441635,-320.47154256,0.00019662,2]
[376109581,1753865441644,-460.0,0.00019663,2]
[376109582,1753865441654,-1024.18,0.00019663,2]
[376109583,1753865441663,-349.8,0.00019663,2]
[376109584,1753865441673,-460.0,0.00019663,2]
[376109585,1753865441683,-487.19139742,0.00019664,2]
[376109586,1753865441692,-647.98,0.00019664,2]
[376109587,1753865441701,-460.0,0.00019665,2]
[376109588,1753865441711,-1255.02,0.00019665,2]
[376109589,1753865441720,-460.0,0.00019665,2]
[376109590,1753865441730,-1313.23,0.00019666,2]
[376109591,1753865441739,-460.0,0.00019667,2]
[376109592,1753865441748,-211.82243142,0.00019839,2]
[376109593,1753865441758,-1817.32049206,0.000199,2]
[376109594,1753865441767,-460.0,0.00019936,2]
[376109595,1753865441776,-723.62,0.00019936,2]
[376109596,1753865441786,-526.36,0.00019936,2]
[376109597,1753865441795,-460.0,0.00019936,2]
[376109598,1753865441805,-569.82,0.00019936,2]
[376109599,1753865441814,-460.0,0.00019936,2]
[376109600,1753865441825,-460.0,0.00019936,2]
[376109601,1753865441836,-478.43,0.00019937,2]
[376109602,1753865441846,-1024.18,0.00019937,2]
[376109603,1753865441856,-460.0,0.00019937,2]
[376109604,1753865441870,-647.98,0.00019938,2]
[376109605,1753865441880,-460.0,0.00019939,2]
[376109606,1753865441893,-1255.02,0.00019939,2]
[376109607,1753865441903,-460.0,0.00019939,2]
[376109608,1753865441913,-1313.23,0.0001994,2]
[376109609,1753865441922,-460.0,0.0001994,2]
[376109610,1753865441932,-460.0,0.0001994,2]
[376109611,1753865441942,-636.37,0.0001994,2]
[376109612,1753865441952,-460.0,0.0001994,2]
[376109613,1753865441961,-460.0,0.0001994,2]
[376109614,1753865441971,-460.0,0.00019941,2]
[376109615,1753865441980,-480.79007333,0.00020113,2]
[376109616,1753865441990,-1817.32049205,0.00020141,2]
[376109617,1753865441999,-160.0,0.00020159,2]
[376109618,1753865442009,-216.14611358,0.00020159,2]
[376109619,1753865442019,-160.0,0.00020159,2]
[376109620,1753865442028,-526.76118213,0.00020159,2]
[376109621,1753865442037,-160.0,0.00020159,2]
[376109622,1753865442046,-312.16666667,0.00020159,2]
[376109623,1753865442056,-231.43925844,0.00020159,2]
[376109624,1753865442065,-460.59675358,0.00020159,2]
[376109625,1753865442075,-160.0,0.00020159,2]
[376109626,1753865442086,-160.0,0.00020159,2]
[376109627,1753865442095,-214.95885286,0.00020159,2]
[376109628,1753865442105,-160.0,0.00020159,2]
[376109629,1753865442114,-3863.36775006,0.00020159,2]
[376109644,1753865443666,-150.0,0.000189,2]
[376109645,1753865443675,-6014.14691902,0.00020159,2]
[376109650,1753865446574,-1958.99109097,0.00020159,2]
[376109651,1753865446588,-803.07200385,0.00020159,2]
[376109652,1753865446598,-841.2246943,0.00020159,2]
[376109654,1753865446607,-160.0,0.00020159,2]
[376109655,1753865446617,-207.079959,0.00020187,2]
[376109656,1753865446627,-460.0,0.0002021,2]
[376109657,1753865446637,-723.62,0.0002021,2]
[376109658,1753865446646,-526.36,0.0002021,2]
[376109659,1753865446656,-168.54334285,0.0002021,2]
[376109660,1753865446779,-291.45665715,0.0002021,2]
[376109661,1753865446807,-569.82,0.0002021,2]
[376109662,1753865446817,-460.0,0.0002021,2]
[376109663,1753865446826,-460.0,0.0002021,2]
[376109664,1753865446837,-1024.18,0.00020211,2]
[376109665,1753865446847,-460.0,0.00020211,2]
[376109666,1753865446856,-647.98,0.00020212,2]
[376109667,1753865446868,-478.34,0.00020213,2]
[376109668,1753865446877,-1255.02,0.00020213,2]
[376109669,1753865446887,-460.0,0.00020213,2]
[376109670,1753865446896,-460.0,0.00020214,2]
[376109671,1753865446906,-460.0,0.00020214,2]
[376109672,1753865446915,-636.37,0.00020214,2]
[376109673,1753865446924,-460.0,0.00020214,2]
[376109674,1753865446934,-460.0,0.00020214,2]
[376109675,1753865446945,-460.0,0.00020215,2]
[376109676,1753865446954,-200.0,0.00020334,15]
[376109677,1753865446963,-200.0,0.00020334,15]
[376109678,1753865446973,-200.0,0.00020334,15]
[376109679,1753865446982,-200.0,0.00020334,15]
[376109680,1753865446991,-1817.32049205,0.00020383,3]
[376109681,1753865447001,-460.0,0.00020484,2]
[376109682,1753865447010,-723.62,0.00020484,2]
[376109683,1753865447019,-526.36,0.00020484,2]
[376109684,1753865447029,-460.0,0.00020484,2]
[376109685,1753865447039,-569.82,0.00020484,2]
[376109686,1753865447048,-460.0,0.00020484,2]
[376109687,1753865447057,-460.0,0.00020484,2]
[376109688,1753865447067,-1024.18,0.00020485,2]
[376109689,1753865447076,-460.0,0.00020485,2]
[376109690,1753865447088,-647.98,0.00020486,2]
[376109691,1753865447097,-1313.23,0.00020487,2]
[376109692,1753865447107,-1255.02,0.00020487,2]
[376109693,1753865447117,-460.0,0.00020487,2]
[376109694,1753865447126,-460.0,0.00020488,2]
[376109695,1753865447136,-460.0,0.00020488,2]
[376109696,1753865447145,-636.37,0.00020488,2]
[376109697,1753865447155,-460.0,0.00020488,2]
[376109698,1753865447165,-460.0,0.00020489,2]
[376109699,1753865447175,-160.0,0.000205,2]
[376109700,1753865447184,-420.0,0.00020538,2]
[376109701,1753865447194,-1817.32049205,0.00020624,3]
[376109702,1753865447204,-800.0,0.00020691,2]
[376109703,1753865447214,-460.0,0.00020758,2]
[376109704,1753865447223,-723.62,0.00020758,2]
[376109705,1753865447232,-526.36,0.00020758,2]
[376109706,1753865447242,-460.0,0.00020758,2]
[376109707,1753865447252,-569.82,0.00020758,2]
[376109708,1753865447261,-413.29500689,0.00020758,2]
[376109709,1753865447271,-460.0,0.00020758,2]
[376109710,1753865447280,-1024.18,0.00020759,2]
[376109711,1753865447289,-460.0,0.00020759,2]
[376109712,1753865447300,-647.98,0.0002076,2]
[376109713,1753865447309,-1227.35735186,0.00020761,2]
[376109714,1753865447322,-27.66264814,0.00020761,2]
[376109715,1753865447332,-460.0,0.00020761,2]
[376109716,1753865447343,-460.0,0.00020762,2]
[376109717,1753865447352,-460.0,0.00020762,2]
[376109718,1753865447361,-636.37,0.00020762,2]
[376109719,1753865447370,-460.0,0.00020763,2]
[376109720,1753865447380,-800.0,0.00020811,2]
[376109721,1753865447389,-1237.9084494,0.00020866,4]
[376109722,1753865447407,-579.41204265,0.00020866,4]
[376109723,1753865447416,-53.25305529,0.00020937,2]
[376109727,1753865705668,162.0,0.000187,2]
[376109735,1753865954046,196.623991,0.00013699,2]
[376109737,1753865971838,199.0,0.00023,30]
[376109744,1753866137767,152.21019168,0.0001874,2]
[376109753,1753866343044,152.21019165,0.00018739,2]
[376109762,1753866540568,152.21019165,0.00018739,2]
[376109819,1753866631849,-471.98987529,0.00018837,2]
[376109829,1753866631902,-99.42865278,0.00018837,2]
[376109832,1753866631912,-460.0,0.00018837,2]
[376109835,1753866631921,-235.72634722,0.00018837,2]
[376109840,1753866631957,-224.27365278,0.00018837,2]
[376109842,1753866631966,-298.05023898,0.00018837,2]
[376110442,1753866638037,-1.94976102,0.00018837,2]
[376110444,1753866638048,-480.0,0.00018837,2]
[376110446,1753866638057,-460.0,0.00018837,2]
[376110448,1753866638066,-460.0,0.00018837,2]
[376110450,1753866638075,-460.0,0.00018837,2]
[376110452,1753866638085,-460.0,0.00018837,2]
[376110454,1753866638095,-460.0,0.00018838,2]
[376110456,1753866638104,-541.08552473,0.00018838,2]
[376110458,1753866638114,-460.84311214,0.00018838,2]
[376110460,1753866638124,-1000.0,0.00018838,2]
[376110461,1753866638133,-460.0,0.00018838,2]
[376110463,1753866638143,-210.14188133,0.00018838,2]
[376110465,1753866638152,-460.0,0.00018838,2]
[376110467,1753866638161,-460.0,0.00018838,2]
[376110469,1753866638170,-460.0,0.00018838,2]
[376110471,1753866638180,-460.0,0.00018838,2]
[376110473,1753866638189,-460.0,0.00018838,2]
[376110475,1753866638198,-301.58688726,0.00018838,2]
[376110477,1753866638207,-603.13512078,0.00018838,2]
[376110479,1753866638230,-460.0,0.00018838,2]
[376110480,1753866638240,-600.92084213,0.00018838,2]
[376110482,1753866638249,-460.0,0.00018838,2]
[376110484,1753866638259,-465.07811632,0.00018838,2]
[376110486,1753866638269,-460.0,0.00018838,2]
[376110488,1753866638278,-460.0,0.00018838,2]
[376110491,1753866638288,-460.0,0.00018838,2]
[376110493,1753866638299,-460.0,0.00018838,2]
[376110495,1753866638309,-461.94496327,0.00018838,2]
[376110497,1753866638318,-460.0,0.00018838,2]
[376110499,1753866638328,-156.89515509,0.00018838,2]
[376110500,1753866638338,-327.9269834,0.00018838,2]
[376110502,1753866638347,-460.0,0.00018838,2]
[376110504,1753866638356,-460.0,0.00018838,2]
[376110527,1753866638517,-460.0,0.00018838,2]
[376110529,1753866638528,-853.71,0.00018838,2]
[376110531,1753866638538,-460.0,0.00018838,2]
[376110533,1753866638550,-460.0,0.00018838,2]
[376110534,1753866638560,-460.0,0.00018838,2]
[376110535,1753866638569,-460.0,0.00018838,2]
[376110536,1753866638579,-460.0,0.00018838,2]
[376110537,1753866638588,-419.83045509,0.00018838,2]
[376110538,1753866638598,-1312.84,0.00018838,2]
[376110539,1753866638608,-460.0,0.00018838,2]
[376110541,1753866638617,-460.0,0.00018838,2]
[376110543,1753866638626,-668.25,0.00018838,2]
[376110545,1753866638635,-460.0,0.00018838,2]
[376110547,1753866638645,-460.0,0.00018838,2]
[376110549,1753866638654,-460.0,0.00018838,2]
[376110551,1753866638664,-460.0,0.00018838,2]
[376110553,1753866638674,-460.0,0.00018838,2]
[376110555,1753866638684,-460.0,0.00018838,2]
[376110557,1753866638693,-460.0,0.00018838,2]
[376110559,1753866638702,-460.0,0.00018838,2]
[376110561,1753866638712,-460.0,0.00018838,2]
[376110563,1753866638722,-460.0,0.00018838,2]
[376110565,1753866638733,-421.25152912,0.00018839,2]
[376110567,1753866638743,-511.73699408,0.00018839,2]
[376110568,1753866638752,-460.0,0.00018839,2]
[376110570,1753866638761,-460.0,0.00018839,2]
[376110572,1753866638772,-460.0,0.00018839,2]
[376110574,1753866638781,-460.0,0.00018839,2]
[376110576,1753866638791,-460.0,0.00018839,2]
[376110578,1753866638805,-460.0,0.00018839,2]
[376110580,1753866638815,-460.0,0.00018839,2]
[376110583,1753866638825,-460.0,0.00018839,2]
[376110585,1753866638834,-460.0,0.00018839,2]
[376110587,1753866638844,-460.0,0.00018839,2]
[376110589,1753866638854,-460.0,0.00018839,2]
[376110591,1753866638863,-460.0,0.00018839,2]
[376110592,1753866638873,-460.0,0.00018839,2]
[376110594,1753866638883,-460.0,0.00018839,2]
[376110596,1753866638893,-460.0,0.00018839,2]
[376110598,1753866638902,-460.0,0.00018839,2]
[376110600,1753866638914,-460.0,0.00018839,2]
[376110602,1753866638923,-552.66,0.00018839,2]
[376110604,1753866638933,-460.0,0.00018839,2]
[376110606,1753866638942,-460.0,0.00018839,2]
[376110608,1753866638952,-400.98882785,0.00018839,2]
[376110610,1753866638962,-460.0,0.00018839,2]
[376110612,1753866638971,-460.0,0.00018839,2]
[376110614,1753866638982,-460.0,0.00018839,2]
[376110616,1753866638991,-460.0,0.00018839,2]
[376110619,1753866639001,-460.0,0.00018839,2]
[376110621,1753866639011,-460.0,0.00018839,2]
[376110623,1753866639022,-460.0,0.00018839,2]
[376110624,1753866639032,-460.0,0.00018839,2]
[376110626,1753866639042,-460.0,0.00018839,2]
[376110628,1753866639058,-460.0,0.00018839,2]
[376110630,1753866639067,-460.0,0.00018839,2]
[376110632,1753866639076,-460.0,0.00018839,2]
[376110634,1753866639086,-465.52512022,0.00018839,2]
[376110636,1753866639096,-460.0,0.00018839,2]
[376110638,1753866639105,-460.0,0.00018839,2]
[376110640,1753866639116,-460.0,0.00018839,2]
[376110642,1753866639125,-82.71178762,0.00018839,2]
[376110644,1753866639139,-377.28821238,0.00018839,2]
[376110646,1753866639148,-460.0,0.00018839,2]
[376110648,1753866639158,-460.0,0.00018839,2]
[376110650,1753866639167,-460.0,0.00018839,2]
[376110652,1753866639177,-460.0,0.00018839,2]
[376110654,1753866639186,-460.0,0.00018839,2]
[376110656,1753866639197,-460.0,0.00018839,2]
[376110659,1753866639206,-460.0,0.00018839,2]
[376110662,1753866639215,-460.0,0.00018839,2]
[376110665,1753866639225,-460.0,0.00018839,2]
[376110668,1753866639235,-460.0,0.00018839,2]
[376110670,1753866639244,-460.0,0.00018839,2]
[376110673,1753866639254,-460.0,0.00018839,2]
[376110675,1753866639263,-460.0,0.00018839,2]
[376110677,1753866639272,-465.20680259,0.00018839,2]
[376110679,1753866639282,-460.0,0.00018839,2]
[376110681,1753866639291,-460.0,0.00018839,2]
[376110684,1753866639303,-460.0,0.00018839,2]
[376110686,1753866639312,-460.0,0.00018839,2]
[376110689,1753866639323,-204.39,0.0001884,2]
[376110692,1753866639338,-460.0,0.0001884,2]
[376110696,1753866639349,-460.0,0.0001884,2]
[376110699,1753866639358,-460.0,0.0001884,2]
[376110703,1753866639367,-460.0,0.0001884,2]
[376110705,1753866639377,-460.0,0.0001884,2]
[376110708,1753866639386,-460.0,0.0001884,2]
[376110711,1753866639395,-500.0,0.0001884,2]
[376110714,1753866639404,-460.0,0.0001884,2]
[376110717,1753866639413,-500.0,0.0001884,2]
[376110720,1753866639423,-460.0,0.0001884,2]
[376110724,1753866639433,-473.69232755,0.0001884,2]
[376110727,1753866639442,-348.8079486,0.0001884,2]
[376110730,1753866639451,-460.0,0.0001884,2]
[376110733,1753866639460,-460.0,0.0001884,2]
[376110736,1753866639469,-460.0,0.0001884,2]
[376110739,1753866639479,-460.0,0.0001884,2]
[376110741,1753866639488,-460.0,0.0001884,2]
[376110744,1753866639497,-460.0,0.0001884,2]
[376110747,1753866639507,-460.0,0.0001884,2]
[376110750,1753866639516,-460.0,0.0001884,2]
[376110753,1753866639526,-460.0,0.0001884,2]
[376110756,1753866639535,-460.0,0.0001884,2]
[376110759,1753866639546,-460.0,0.0001884,2]
[376110762,1753866639556,-460.0,0.0001884,2]
[376110765,1753866639566,-460.0,0.0001884,2]
[376110768,1753866639575,-460.0,0.0001884,2]
[376110771,1753866639584,-174.25572382,0.0001884,2]
[376110774,1753866639597,-285.74427618,0.0001884,2]
[376110777,1753866639606,-460.0,0.0001884,2]
[376110779,1753866639615,-460.0,0.0001884,2]
[376110782,1753866639624,-460.0,0.0001884,2]
[376110785,1753866639634,-460.0,0.0001884,2]
[376110788,1753866639644,-1149.08,0.0001884,2]
[376110791,1753866639653,-1149.08,0.0001884,2]
[376110793,1753866639662,-460.0,0.0001884,2]
[376110796,1753866639671,-460.0,0.0001884,2]
[376110799,1753866639680,-460.0,0.0001884,2]
[376110802,1753866639689,-460.0,0.0001884,2]
[376110805,1753866639699,-460.0,0.0001884,2]
[376110807,1753866639708,-460.0,0.0001884,2]
[376110810,1753866639717,-468.36191498,0.0001884,2]
[376110813,1753866639728,-460.0,0.0001884,2]
[376110816,1753866639739,-460.0,0.0001884,2]
[376110819,1753866639748,-460.0,0.0001884,2]
[376110822,1753866639757,-460.0,0.0001884,2]
[376110825,1753866639768,-420.02236306,0.0001884,2]
[376110828,1753866639778,-460.0,0.0001884,2]
[376110831,1753866639787,-460.0,0.0001884,2]
[376110832,1753866639797,-460.0,0.0001884,2]
[376110835,1753866639807,-460.0,0.0001884,2]
[376110838,1753866639817,-460.0,0.0001884,2]
[376110840,1753866639826,-460.0,0.00018841,2]
[376110842,1753866639836,-460.0,0.00018841,2]
[376110844,1753866639845,-460.0,0.00018841,2]
[376110846,1753866639854,-1233.14,0.00018841,2]
[376110848,1753866639864,-1149.08,0.00018842,2]
[376110850,1753866639874,-460.0,0.00018843,2]
[376110852,1753866639884,-506.78881509,0.00018843,2]
[376110854,1753866639893,-460.0,0.00018843,2]
[376110855,1753866639903,-460.0,0.00018843,2]
[376110857,1753866639913,-151.0,0.00018844,2]
[376110859,1753866639923,-151.0,0.00018844,2]
[376110861,1753866639932,-151.0,0.00018844,2]
[376110863,1753866639942,-151.0,0.00018844,2]
[376110864,1753866639951,-444.0,0.00018844,2]
[376110865,1753866639960,-1955.50839531,0.000189,2]
[376110867,1753866639970,-460.0,0.00019111,2]
[376110868,1753866639979,-460.0,0.00019111,2]
[376110870,1753866639988,-460.0,0.00019111,2]
[376110872,1753866639998,-413.67656037,0.00019112,2]
[376110873,1753866640007,-460.0,0.00019112,2]
[376110875,1753866640017,-460.0,0.00019112,2]
[376110877,1753866640027,-460.0,0.00019112,2]
[376110879,1753866640036,-460.0,0.00019112,2]
[376110881,1753866640047,-853.71,0.00019112,2]
[376110883,1753866640056,-460.0,0.00019112,2]
[376110885,1753866640066,-460.0,0.00019112,2]
[376110887,1753866640075,-1312.84,0.00019112,2]
[376110889,1753866640084,-468.7,0.00019112,2]
[376110891,1753866640094,-668.25,0.00019112,2]
[376110893,1753866640104,-460.0,0.00019112,2]
[376110895,1753866640113,-460.0,0.00019112,2]
[376110897,1753866640123,-460.0,0.00019112,2]
[376110899,1753866640133,-460.0,0.00019112,2]
[376110901,1753866640142,-460.0,0.00019112,2]
[376110903,1753866640152,-460.0,0.00019112,2]
[376110905,1753866640161,-460.0,0.00019112,2]
[376110907,1753866640171,-460.0,0.00019112,2]
[376110909,1753866640180,-460.0,0.00019112,2]
[376110911,1753866640190,-460.0,0.00019112,2]
[376110913,1753866640200,-460.0,0.00019113,2]
[376110915,1753866640209,-460.0,0.00019113,2]
[376110916,1753866640240,-460.0,0.00019113,2]
[376110919,1753866640249,-460.0,0.00019113,2]
[376110922,1753866640259,-460.0,0.00019113,2]
[376110925,1753866640269,-511.28464149,0.00019113,2]
[376110928,1753866640278,-460.55798243,0.00019113,2]
[376110931,1753866640287,-460.0,0.00019113,2]
[376110933,1753866640298,-460.0,0.00019113,2]
[376110936,1753866640307,-460.0,0.00019113,2]
[376110938,1753866640317,-460.0,0.00019113,2]
[376110940,1753866640326,-460.0,0.00019113,2]
[376110942,1753866640335,-460.0,0.00019113,2]
[376110944,1753866640345,-460.0,0.00019113,2]
[376110947,1753866640354,-460.0,0.00019113,2]
[376110949,1753866640363,-460.0,0.00019113,2]
[376110952,1753866640373,-460.0,0.00019113,2]
[376110954,1753866640382,-460.0,0.00019113,2]
[376110957,1753866640390,-460.0,0.00019113,2]
[376110958,1753866640399,-460.0,0.00019113,2]
[376110960,1753866640409,-460.0,0.00019113,2]
[376110963,1753866640418,-460.0,0.00019113,2]
[376110965,1753866640428,-460.0,0.00019113,2]
[376110968,1753866640437,-460.0,0.00019113,2]
[376110971,1753866640446,-460.0,0.00019113,2]
[376110973,1753866640455,-460.0,0.00019113,2]
[376110976,1753866640466,-460.0,0.00019113,2]
[376110978,1753866640475,-460.0,0.00019113,2]
[376110981,1753866640485,-460.0,0.00019113,2]
[376110984,1753866640494,-460.0,0.00019113,2]
[376110986,1753866640503,-460.0,0.00019113,2]
[376110989,1753866640512,-460.0,0.00019113,2]
[376110991,1753866640522,-460.0,0.00019113,2]
[376110994,1753866640531,-460.0,0.00019113,2]
[376110997,1753866640540,-460.0,0.00019113,2]
[376110998,1753866640550,-460.0,0.00019113,2]
[376111001,1753866640560,-460.0,0.00019113,2]
[376111004,1753866640569,-460.0,0.00019113,2]
[376111006,1753866640579,-460.0,0.00019113,2]
[376111009,1753866640588,-460.0,0.00019113,2]
[376111011,1753866640599,-460.0,0.00019113,2]
[376111013,1753866640608,-462.45,0.00019113,2]
[376111015,1753866640617,-460.0,0.00019113,2]
[376111017,1753866640626,-460.0,0.00019113,2]
[376111019,1753866640635,-460.0,0.00019113,2]
[376111021,1753866640645,-460.0,0.00019113,2]
[376111023,1753866640655,-460.0,0.00019113,2]
[376111025,1753866640665,-460.0,0.00019113,2]
[376111027,1753866640674,-460.0,0.00019113,2]
[376111029,1753866640683,-460.0,0.00019113,2]
[376111031,1753866640693,-460.0,0.00019113,2]
[376111033,1753866640702,-460.0,0.00019113,2]
[376111035,1753866640711,-460.0,0.00019113,2]
[376111037,1753866640721,-460.0,0.00019113,2]
[376111039,1753866640732,-460.0,0.00019113,2]
[376111041,1753866640743,-460.0,0.00019113,2]
[376111042,1753866640752,-460.0,0.00019113,2]
[376111044,1753866640762,-460.0,0.00019113,2]
[376111046,1753866640771,-460.0,0.00019113,2]
[376111048,1753866640780,-514.85800476,0.00019113,2]
[376111050,1753866640789,-460.0,0.00019113,2]
[376111052,1753866640800,-460.0,0.00019113,2]
[376111054,1753866640813,-460.0,0.00019113,2]
[376111056,1753866640830,-460.0,0.00019113,2]
[376111058,1753866640839,-460.0,0.00019113,2]
[376111060,1753866640848,-460.0,0.00019113,2]
[376111062,1753866640857,-460.0,0.00019113,2]
[376111064,1753866640866,-460.0,0.00019113,2]
[376111066,1753866640875,-460.0,0.00019113,2]
[376111068,1753866640884,-460.0,0.00019113,2]
[376111069,1753866640894,-460.0,0.00019113,2]
[376111071,1753866640904,-460.0,0.00019113,2]
[376111073,1753866640914,-460.0,0.00019113,2]
[376111075,1753866640924,-460.0,0.00019113,2]
[376111077,1753866640933,-460.0,0.00019113,2]
[376111079,1753866640942,-460.0,0.00019113,2]
[376111081,1753866640951,-460.0,0.00019113,2]
[376111083,1753866640961,-460.0,0.00019113,2]
[376111085,1753866640970,-460.0,0.00019113,2]
[376111087,1753866640980,-460.0,0.00019113,2]
[376111089,1753866640989,-460.0,0.00019113,2]
[376111091,1753866640999,-460.0,0.00019113,2]
[376111093,1753866641008,-460.0,0.00019113,2]
[376111094,1753866641017,-460.0,0.00019113,2]
[376111095,1753866641027,-460.0,0.00019113,2]
[376111097,1753866641036,-460.0,0.00019113,2]
[376111099,1753866641046,-460.0,0.00019113,2]
[376111101,1753866641056,-460.0,0.00019113,2]
[376111103,1753866641065,-460.0,0.00019113,2]